Cogmind - Beta 17 @@@ ROGUE MODE // 2026.08.01 @ 03:33:05 Player: time Result: Destroyed by Y-64 Sentinel with KE Penetrator Performance ------------- Evolutions (5) 2500 Regions Visited (9) 1800 Robots Destroyed (45) 225 Value Destroyed (1514) 1514 Prototype IDs (25) 500 Alien Tech Used (0) 0 Bonus (300) 300 TOTAL SCORE: 6839 Bonus ------- Aligned with FarCom 300 Cogmind --------- Core Integrity 0/1000 Matter 31/300 Energy 98/100 System Corruption 0% Temperature Cool (9) Movement Core (50) Location -5/Upper Caves Parts ------- > --- POWER (2) -------- (None) > --- PROPULSION (4) --- (None) > --- UTILITY (8) ------ Launcher Guidance Computer System Guard > --- WEAPON (3) ------- (None) > --- INVENTORY (5) ---- (None) Peak State ------------ > --- POWER ------------ Deuterium Engine > --- PROPULSION ------- Improved Carbon-fiber Leg > --- UTILITY ---------- Scrap Suit Medium Storage Unit Experimental Sensor Array Launcher Guidance Computer > --- WEAPON ----------- Lightning Gun Lightning Gun Mini Grenade Launcher > --- INVENTORY -------- High-capacity Storage Unit Improved Terrain Scanner Cloak of Protection Shock Absorption System Flak Cannon Flak Cannon Flak Cannon [Rating: 41] Favorites ----------- Power Ion Engine Engine Ion Engine Power Core Light Nuclear Core Propulsion Aluminum Leg Treads Light Treads Leg Aluminum Leg Flight Unit VTOL Module Utility Medium Storage Unit Device Sensor Array Storage Medium Storage Unit Processor Launcher Guidance Computer Protection Light Armor Plating Weapon Light Assault Rifle Energy Gun Medium Laser Energy Cannon Proton Cannon Ballistic Gun Light Assault Rifle Ballistic Cannon Flak Cannon Launcher Mini Grenade Launcher Build | -11 -10 -10 -10 -9 -8 -7 -6 -5 -5 ------- Run | Yrd Mat Min Exi Min Mat Fac Fac Fac Upp Slots Evolved 10 | . . . . . 4 2 2 2 . Power 1 | . . . . . 1 . . . . Propulsion 2 | . . . . . 1 . 1 . . Utility 6 | . . . . . 2 1 1 2 . Weapon 1 | . . . . . . 1 . . . Parts Attached 67 | 9 3 7 3 1 16 13 3 2 10 Power 13 | 2 . 2 . . 5 2 . . 2 Engine 8 | 2 . 2 . . 3 1 . . . Core 5 | . . . . . 2 1 . . 2 Reactor . | . . . . . . . . . . Propulsion 19 | 3 1 1 . . 8 5 1 . . Treads 8 | 1 . . . . 4 2 1 . . Leg 8 | 2 1 1 . . 2 2 . . . Wheel . | . . . . . . . . . . Hover . | . . . . . . . . . . Flight 3 | . . . . . 2 1 . . . Utility 15 | 2 1 1 3 . 1 2 1 . 4 Device 8 | 1 . 1 1 . . 2 1 . 2 Storage 3 | 1 1 . 1 . . . . . . Processor 3 | . . . 1 . . . . . 2 Hackware . | . . . . . . . . . . Protection 1 | . . . . . 1 . . . . Artifact . | . . . . . . . . . . Weapon 20 | 2 1 3 . 1 2 4 1 2 4 Energy Gun 3 | . 1 1 . . . . . . 1 Energy Cannon 1 | . . . . . . . 1 . . Ballistic Gun 8 | 2 . 1 . . 1 . . 1 3 Ballistic Cannon 5 | . . 1 . . . 3 . 1 . Launcher 3 | . . . . 1 1 1 . . . Special Weapon . | . . . . . . . . . . Impact Weapon . | . . . . . . . . . . Slashing Weapon . | . . . . . . . . . . Piercing Weapon . | . . . . . . . . . . Special Melee Weapon . | . . . . . . . . . . Unidentified Prototypes 3 | . . . 1 . 1 1 . . . Parts Lost 54 | 1 2 1 . . 16 14 8 . 12 Power 13 | 1 1 . . . 7 2 . . 2 Propulsion 13 | . . . . . 5 5 2 . 1 Utility 10 | . . 1 . . 2 2 2 . 3 Weapon 18 | . 1 . . . 2 5 4 . 6 Highest Loss Streak 7 | 1 2 1 . . 5 7 6 . 6 To Critical Strikes . | . . . . . . . . . . Average Backups 7 | 5 7 9 9 9 7 5 7 5 2 Power . | . . . 1 1 . . . 1 . Propulsion 2 | 3 5 3 2 2 . . 1 . . Utility 2 | . . 2 4 5 4 3 4 3 1 Weapon 1 | . . 2 1 1 2 1 1 1 . Tool/Special . | . . . . . . . . . . Unused Backups 12 | . . 7 2 . . . 3 . . Power . | . . . . . . . . . . Propulsion 5 | . . 4 . . . . 1 . . Utility 1 | . . . . . . . 1 . . Weapon 6 | . . 3 2 . . . 1 . . Tool/Special . | . . . . . . . . . . Average Slot Usage (%) 77 | . 96 93 100 100 82 60 39 16 23 Engine 8 | . 10 12 14 14 9 . . . . Core 1 | . . . . . 5 2 . . 2 Treads 3 | . . . . . 7 8 5 5 . Leg 17 | . 28 28 28 28 13 3 5 . . Device 6 | . 14 9 7 . 7 9 . . 1 Storage 10 | . 14 14 14 14 9 7 5 . . Processor 6 | . . . 6 14 9 7 6 5 11 Energy Gun 1 | . 1 9 . . . . . . . Ballistic Gun 10 | . 25 14 14 14 14 3 . 1 6 Ballistic Cannon 7 | . . 4 14 13 1 6 16 3 . Launcher 1 | . . . . . 1 6 . . . Peak Build Rating 41 | 7 7 10 17 14 28 41 23 22 29 Average Rating 14 | 6 6 8 13 13 19 28 19 16 15 On Entrance 12 | . 7 7 10 13 14 16 21 11 22 Avg Prop Armor Cover (%) 11 | . . . . . 6 5 9 32 . Naked Turns . | . . . . . . . . . . Heaviest Build 31 | 14 19 20 27 19 31 28 28 14 14 Greatest Support 60 | 20 20 20 20 20 60 60 15 30 30 Greatest Overweight (x) 9 | 1 . . 1 . 2 9 3 2 4 Average Overweight (x) . | . . . . . . . . . . Largest Inventory Capacity 20 | 8 10 10 20 10 10 10 10 5 5 Average Capacity 9 | 7 9 10 10 10 10 10 9 5 5 Most Carried 10 | 6 9 10 10 10 10 8 10 5 5 Average Carried 7 | 5 7 9 9 9 8 5 7 5 2 Final Capacity 10 | 8 10 10 10 10 10 10 5 5 5 Final Carried 10 | 5 9 10 10 10 9 6 5 5 . Scrap Suit Usage (%) 5 | . . . . . . 70 . . . Parts Cannibalized 2 | . . . . . . 2 . . . Class Distribution -------------------- 70% | Mutant 13% | Skirmisher 13% | Scavenger-Skirmisher Dominant Class ---------------- Mutant | -10/Materials Mutant | -10/Mines Mutant | -10/Exiles Mutant | -9/Mines Scavenger-Skirmisher | -8/Materials Skirmisher | -7/Factory Skirmisher | -6/Factory Mutant | -5/Factory Mutant | -5/Upper Caves Resources | -11 -10 -10 -10 -9 -8 -7 -6 -5 -5 ----------- Run | Yrd Mat Min Exi Min Mat Fac Fac Fac Upp Matter Collected 1273 | 271 98 90 . 71 378 172 . . 193 Remotely . | . . . . . . . . . . Salvage Created 1120 | 21 98 107 . 12 503 265 . . 114 Parts 71 | 1 4 7 . 3 31 11 . . 14 Haulers Intercepted . | . . . . . . . . . . Recyclers Shooed . | . . . . . . . . . . Parts Field Recycled . | . . . . . . . . . . Retrieved Matter . | . . . . . . . . . . Parts Self-Destructed 10 | . . . . . . . . . 10 Prevented . | . . . . . . . . . . Parts Restored . | . . . . . . . . . . Kills | -11 -10 -10 -10 -9 -8 -7 -6 -5 -5 ------- Run | Yrd Mat Min Exi Min Mat Fac Fac Fac Upp Combat Hostiles Destroyed 40 | 1 2 2 . 2 19 8 . . 6 Guns 19 | 1 2 2 . . 8 . . . 6 Cannons 4 | . . . . . 1 3 . . . AOE 17 | . . . . 2 10 5 . . . Classes Destroyed 9 | 2 1 1 . 1 2 2 . . . Worker 2 | . . 1 . . 1 . . . . Tunneler 2 | 1 . . . . 1 . . . . Recycler 1 | . . . . . . 1 . . . Swarmer 16 | . . . . 2 6 2 . . 6 Grunt 14 | . 2 2 . . 7 3 . . . Sentry 7 | . . . . . 5 2 . . . Demolisher 1 | 1 . . . . . . . . . Hunter 1 | . . . . . 1 . . . . Programmer 1 | . . . . . . 1 . . . Best Kill Streak 6 | 1 1 1 . 2 6 6 . . 5 Combat Bots Only 6 | 1 1 1 . 2 6 5 . . 5 Max Kills in Single Turn 3 | 1 1 1 . 2 3 2 . . 1 Gunslinging . | . . . . . . . . . . Exploded 3 | . . . . 2 3 2 . . . Melee . | . . . . . . . . . . Uniques/NPCs Destroyed . | . . . . . . . . . . Combat | -11 -10 -10 -10 -9 -8 -7 -6 -5 -5 -------- Run | Yrd Mat Min Exi Min Mat Fac Fac Fac Upp Hostile Shots Fired 699 | 19 13 9 . 3 156 248 110 . 141 Missed 219 | 5 3 3 . . 43 91 44 . 30 Hits 480 | 14 10 6 . 3 113 157 66 . 111 Melee 15 | 1 . . . . . . 4 . 10 Projectile 465 | 13 10 6 . 3 113 157 62 . 101 AOE 8 | 8 . . . . . . . . . Critical Strikes 16 | . . . . . 4 7 4 . 1 Damage Taken 7827 | 447 143 79 . 22 2032 1973 1073 . 2058 Core 2230 | 116 43 15 . 9 219 474 349 . 1005 Absorbed by Shields . | . . . . . . . . . . Regen/Repaired (Parts) 20 | . . . . . . 20 . . . Core Remaining (%) 45 | 53 . . . 26 60 32 58 . . Volleys Fired 137 | 9 9 20 . 2 51 23 1 . 22 Largest 3 | 2 2 2 . 1 2 3 1 . 2 Hottest 111 | 40 60 60 . 30 58 111 75 . 77 Shots Fired 255 | 18 18 40 . 2 97 52 1 . 27 Gun 198 | 18 18 40 . 1 74 23 . . 24 Cannon 38 | . . . . . 11 23 1 . 3 Launcher 19 | . . . . 1 12 6 . . . Special . | . . . . . . . . . . Kinetic 199 | 18 17 20 . 1 85 32 . . 26 Thermal 21 | . 1 20 . . . . . . . Explosive 19 | . . . . 1 12 6 . . . Electromagnetic 16 | . . . . . . 14 1 . 1 Robot Hit Streak 16 | 6 6 12 . 1 8 16 1 . 6 Robot Miss Streak 15 | 3 3 4 . 1 7 15 . . 1 Penetration Max . | . . . . . . . . . . Secondary Targets 2 | . . . . . 2 . . . . Max Gunslinging Chain 1 | . . . . . 1 . . . . Shots Hit Robots 170 | 10 14 23 . 1 67 32 1 . 22 Core Hits 94 | 5 5 8 . 1 42 24 . . 9 Critical Kills . | . . . . . . . . . . Critical Parts Destroyed 2 | . . 1 . . 1 . . . . Critical Strikes 3 | . . 1 . . 1 . . . 1 Destroy 2 | . . 1 . . 1 . . . . Blast 1 | . . . . . . . . . 1 Melee Attacks . | . . . . . . . . . . Impact . | . . . . . . . . . . Slashing . | . . . . . . . . . . Piercing . | . . . . . . . . . . Sneak Attacks . | . . . . . . . . . . Combat Hostiles . | . . . . . . . . . . Follow-up Attacks . | . . . . . . . . . . Damage Inflicted 3765 | 113 161 218 . 149 1666 1012 35 . 411 Guns 1600 | 113 161 218 . . 713 88 . . 307 Cannons 416 | . . . . . 106 180 26 . 104 Explosions 1736 | . . . . 149 843 744 . . . Melee . | . . . . . . . . . . Ramming 13 | . . . . . 4 . 9 . . Kinetic 1823 | 113 161 97 . . 819 222 . . 411 Thermal 258 | . . 121 . . . 137 . . . Explosive 1599 | . . . . 149 843 607 . . . Electromagnetic 72 | . . . . . . 46 26 . . Impact . | . . . . . . . . . . Slashing . | . . . . . . . . . . Piercing . | . . . . . . . . . . Highest Corruption 5 | . . . . . . 5 . . . Average Corruption 3 | . . . . . . 3 . . . Corruption Purged . | . . . . . . . . . . Corruption Blocked . | . . . . . . . . . . Effects 7 | . . . . . . 7 . . . Message Errors 2 | . . . . . . 2 . . . Parts Rejected 1 | . . . . . . 1 . . . Data Loss (minor) 1 | . . . . . . 1 . . . Data Loss (major) 1 | . . . . . . 1 . . . Misfires 2 | . . . . . . 2 . . . Overload Shots . | . . . . . . . . . . Overflow Damage 135 | . . . . 13 45 61 . . 16 Projectiles 16 | . . . . . . . . . 16 Explosions 119 | . . . . 13 45 61 . . . Melee . | . . . . . . . . . . Knockbacks 14 | . . . . . 3 9 . . 2 Impact . | . . . . . . . . . . Kinetic 14 | . . . . . 3 9 . . 2 Secondary . | . . . . . . . . . . Self-Inflicted Damage 386 | . . . . . 319 66 1 . . Shots 9 | . . . . . 7 2 . . . Rammed 7 | . . . . . 1 . 3 . 3 Targets Rammed 8 | . . . . . 1 . 4 . 3 Kicked 1 | . . . . . . . 1 . . Crushed . | . . . . . . . . . . Highest Temperature 79 | . 19 40 . . 79 52 . . 7 Average Temperature 21 | . 7 19 . . 24 20 . . 7 Received Heat Transfer 1674 | . 81 45 . . 801 336 258 . 153 Siege Activations . | . . . . . . . . . . Martial Activations . | . . . . . . . . . . Shielding Activations . | . . . . . . . . . . Robots Disrupted . | . . . . . . . . . . Combat Hostiles . | . . . . . . . . . . Robots Corrupted . | . . . . . . . . . . Combat Hostiles . | . . . . . . . . . . Parts Fried . | . . . . . . . . . . Impact Corruptions . | . . . . . . . . . . Robots Melted . | . . . . . . . . . . Combat Hostiles . | . . . . . . . . . . Parts Melted . | . . . . . . . . . . Heat Transferred 425 | . . 275 . . . 150 . . . Parts Sabotaged . | . . . . . . . . . . Parts Stolen . | . . . . . . . . . . Parts Stripped . | . . . . . . . . . . Power Chain Reactions 1 | . . . . . . 1 . . . Alert | -11 -10 -10 -10 -9 -8 -7 -6 -5 -5 ------- Run | Yrd Mat Min Exi Min Mat Fac Fac Fac Upp Maximum Alert Level 1 | . . . . . 1 . . . . Low Security (%) 97 | 100 100 100 . 100 86 100 100 100 . Level 1 2 | . . . . . 13 . . . . Level 2 . | . . . . . . . . . . Level 3 . | . . . . . . . . . . Level 4 . | . . . . . . . . . . Level 5 . | . . . . . . . . . . High Security . | . . . . . . . . . . Max Security . | . . . . . . . . . . Peak Influence 263 | 20 70 50 . 67 263 140 53 18 . Initial 95 | . . 21 . . . 95 38 18 . Average 23 | . 23 4 . 11 61 75 7 2 . Influence Increases 1588 | 25 114 85 . 77 645 286 91 . 265 Destroy 0b10 Robot/C 800 | 20 40 40 . 40 380 160 . . 120 Destroy 0b10 Robot/NC 25 | 5 . 5 . . 10 5 . . . Destroy Leader 190 | . 10 10 . 10 100 50 . . 10 Successful Hack 17 | . 4 . . . 5 7 1 . . Disable Machine 90 | . . . . . 75 15 . . . Destroy Structure 106 | . . . . 12 45 49 . . . Lose Combat Pursuer 360 | . 60 30 . 15 30 . 90 . 135 Influence Decreases 1518 | 25 60 139 . 77 433 419 131 39 195 Entered New Map 212 | . . 33 . . . 117 41 21 . Time Decay 961 | 25 40 106 . 77 293 222 70 18 110 Lost Part 345 | . 20 . . . 140 80 20 . 85 Squads Dispatched 9 | . . . . . 4 4 1 . . Investigation 1 | . . . . . 1 . . . . Extermination 2 | . . . . . . 1 1 . . Reinforcement 4 | . . . . . 3 1 . . . Assault . | . . . . . . . . . . Garrison 2 | . . . . . . 2 . . . Intercept . | . . . . . . . . . . Searches Triggered . | . . . . . . . . . . Construction Impeded 2 | . . . . . 1 1 . . . Haulers Reinforced . | . . . . . . . . . . Active Scanning Responses . | . . . . . . . . . . Cargo Convoy Interrupts . | . . . . . . . . . . Stealth | -11 -10 -10 -10 -9 -8 -7 -6 -5 -5 --------- Run | Yrd Mat Min Exi Min Mat Fac Fac Fac Upp Distress Signals 2 | . . . . . 2 . . . . Communications Jammed . | . . . . . . . . . . Distress Signals . | . . . . . . . . . . Times Spotted 90 | 6 7 3 . 2 31 12 11 1 17 Peak Tracking Total 9 | 4 4 2 . 3 6 4 9 1 7 Tactical Retreats 14 | . 1 2 . 1 2 . 3 . 5 Traps | -11 -10 -10 -10 -9 -8 -7 -6 -5 -5 ------- Run | Yrd Mat Min Exi Min Mat Fac Fac Fac Upp Traps Triggered 2 | . . . . . 1 . 1 . . Indirectly . | . . . . . . . . . . Trap Hack Attempts . | . . . . . . . . . . Triggered . | . . . . . . . . . . Disarmed . | . . . . . . . . . . Reprogrammed . | . . . . . . . . . . Reused . | . . . . . . . . . . Traps Extracted . | . . . . . . . . . . Installed . | . . . . . . . . . . Triggered . | . . . . . . . . . . Machines | -11 -10 -10 -10 -9 -8 -7 -6 -5 -5 ---------- Run | Yrd Mat Min Exi Min Mat Fac Fac Fac Upp Machines Disabled 6 | . . . . . 5 1 . . . Max in Single Turn 2 | . . . . . 2 1 . . . Machines Repaired . | . . . . . . . . . . Machines Dismantled . | . . . . . . . . . . Machines Sabotaged . | . . . . . . . . . . Overloaded Fab Kills . | . . . . . . . . . . Hacking | -11 -10 -10 -10 -9 -8 -7 -6 -5 -5 --------- Run | Yrd Mat Min Exi Min Mat Fac Fac Fac Upp Machines Accessed 13 | . 2 . 1 . 4 1 5 . . Terminals 9 | . 2 . . . 3 1 3 . . Fabricators . | . . . . . . . . . . Repair Stations . | . . . . . . . . . . Recycling Units 2 | . . . . . 1 . 1 . . Scanalyzers 1 | . . . . . . . 1 . . Garrison Access . | . . . . . . . . . . Total Hacks 31 | . 6 . 1 . 6 4 14 . . Successful 17 | . 3 . 1 . 2 4 7 . . Failed 14 | . 3 . . . 4 . 7 . . Catastrophic 1 | . . . . . . . 1 . . Database Lockouts . | . . . . . . . . . . Manual 17 | . 4 . 2 . 5 2 3 1 . Terminals 20 | . 6 . . . 5 4 5 . . Fabricators . | . . . . . . . . . . Repair Stations . | . . . . . . . . . . Recycling Units 8 | . . . . . 1 . 7 . . Scanalyzers 2 | . . . . . . . 2 . . Garrison Access . | . . . . . . . . . . Terminal Hacks 7 | . 1 . 1 . . 3 2 . . Record 1 | . . . . . . 1 . . . Open DSF 1 | . . . . . . . 1 . . Alert Level 3 | . 1 . . . . 1 1 . . Zone Layout 1 | . . . . . . 1 . . . Proto ID Catalog 1 | . . . 1 . . . . . . Fabricator Hacks . | . . . . . . . . . . Repair Station Hacks . | . . . . . . . . . . Recycling Unit Hacks 3 | . . . . . 1 . 2 . . Retrieve Matter 1 | . . . . . . . 1 . . Retrieve Components 2 | . . . . . 1 . 1 . . Scanalyzer 2 | . . . . . . . 2 . . Retrieve Study 2 | . . . . . . . 2 . . Garrison Access Hacks . | . . . . . . . . . . Unauthorized Hacks 5 | . 2 . . . 1 1 1 . . Terminals 5 | . 2 . . . 1 1 1 . . Botnet 5 | . 2 . . . 1 1 1 . . Fabricators . | . . . . . . . . . . Repair Stations . | . . . . . . . . . . Recycling Units . | . . . . . . . . . . Scanalyzers . | . . . . . . . . . . Garrison Access . | . . . . . . . . . . Data Cores Recovered . | . . . . . . . . . . Used . | . . . . . . . . . . Hacking Detections 10 | . 1 . . . 4 1 4 . . Full Trace Events . | . . . . . . . . . . Feedback Events . | . . . . . . . . . . Feedback Blocked . | . . . . . . . . . . Robot Schematics Acquired . | . . . . . . . . . . Robots Built . | . . . . . . . . . . Authchips . | . . . . . . . . . . Time . | . . . . . . . . . . Total Robot Build Rating . | . . . . . . . . . . Part Schematics Acquired . | . . . . . . . . . . Parts Built . | . . . . . . . . . . Authchips . | . . . . . . . . . . Time . | . . . . . . . . . . Total Part Build Rating . | . . . . . . . . . . Part Studies Acquired 2 | . . . . . . . 2 . . Parts Repaired . | . . . . . . . . . . Time . | . . . . . . . . . . Parts Recycled . | . . . . . . . . . . Recycled Matter . | . . . . . . . . . . Retrieved Matter . | . . . . . . . . . . Retrieved Components 6 | . . . . . 3 . 3 . . Parts Scanalyzed . | . . . . . . . . . . Part Schematics Acquired . | . . . . . . . . . . Parts Damaged . | . . . . . . . . . . Bothacking | -11 -10 -10 -10 -9 -8 -7 -6 -5 -5 ------------ Run | Yrd Mat Min Exi Min Mat Fac Fac Fac Upp Used RIF Installer . | . . . . . . . . . . Robots Hacked . | . . . . . . . . . . Non-combat . | . . . . . . . . . . Combat . | . . . . . . . . . . Robot Hacks Applied . | . . . . . . . . . . Relay Couplers Released . | . . . . . . . . . . Fabnet Peak Effective % . | . . . . . . . . . . Robots Rewired . | . . . . . . . . . . Allies Hacked . | . . . . . . . . . . Hacks Repelled . | . . . . . . . . . . Allies | -11 -10 -10 -10 -9 -8 -7 -6 -5 -5 -------- Run | Yrd Mat Min Exi Min Mat Fac Fac Fac Upp Total Allies 3 | . . 3 . . . . . . . Largest Group 3 | . . 3 2 . . . . . . Highest-Rated Group 89 | . . 89 58 . . . . . . Highest-Rated Ally 31 | . . 31 31 . . . . . . Total Orders . | . . . . . . . . . . Ally Attacks . | . . . . . . . . . . Total Damage . | . . . . . . . . . . Kills . | . . . . . . . . . . Allies Corrupted . | . . . . . . . . . . Allies Melted . | . . . . . . . . . . Intel | -11 -10 -10 -10 -9 -8 -7 -6 -5 -5 ------- Run | Yrd Mat Min Exi Min Mat Fac Fac Fac Upp Active Infowar (turns) 3704 | 1244 217 723 283 . 874 341 . . 22 Sensors 2137 | . . 661 262 . 873 341 . . . Terrain 22 | . . . . . . . . . 22 Seismic 1523 | 1244 217 62 . . . . . . . Cloaking 23 | . . . 21 . 2 . . . . Robot Analysis Total . | . . . . . . . . . . Derelict Logs Recovered 3 | . . 2 . 1 . . . . . Drone Launches . | . . . . . . . . . . Drone Recoveries . | . . . . . . . . . . Exploration | -11 -10 -10 -10 -9 -8 -7 -6 -5 -5 ------------- Run | Yrd Mat Min Exi Min Mat Fac Fac Fac Upp Turns Passed 6745 | 1297 217 1072 970 471 1023 566 646 174 309 Spaces Moved 3535 | 58 132 764 730 354 397 220 418 198 264 Core 575 | 7 . . . . . 10 147 157 254 Treads 438 | . . . . . 243 144 . 41 10 Legs 2522 | 51 132 764 730 354 154 66 271 . . Wheels . | . . . . . . . . . . Hover . | . . . . . . . . . . Flight . | . . . . . . . . . . Fastest Speed 50 | 50 120 120 120 120 120 120 50 50 50 Average Speed 135 | 115 120 120 131 120 194 208 145 86 90 Slowest Speed 500 | 120 120 120 190 120 260 500 200 160 250 Overloaded Moves . | . . . . . . . . . . Propulsion Burnouts . | . . . . . . . . . . Robots Hopped . | . . . . . . . . . . Potential Cave-ins . | . . . . . . . . . . Cave-ins Triggered . | . . . . . . . . . . Exploration Rate (%) 38 | 6 22 99 93 64 38 8 11 4 41 Regions Visited 9 Branch Regions 4 Pre-discovered Areas . | . . . . . . . . . . Known Exits Taken 1 | . . . 1 . . . . . . Unknown Exits Taken 8 | 1 1 1 . 1 1 1 1 1 . Scrap Searched 5 | . . 1 . 3 . . . . 1 Spaces Dug . | . . . . . . . . . . Terrain Destroyed 143 | . . . . 15 50 77 . . 1 Melee . | . . . . . . . . . . Projectile 4 | . . . . . 3 . . . 1 AOE 139 | . . . . 15 47 77 . . . Terrain Rammed . | . . . . . . . . . . Walls Destroyed . | . . . . . . . . . . Machines Disabled . | . . . . . . . . . . Actions | -11 -10 -10 -10 -9 -8 -7 -6 -5 -5 --------- Run | Yrd Mat Min Exi Min Mat Fac Fac Fac Upp Total 5250 | 1268 173 887 737 398 551 282 448 199 307 Wait 1437 | 1187 27 74 . 39 68 18 17 . 7 Move 3526 | 57 131 763 729 353 396 219 417 197 264 Hop . | . . . . . . . . . . Pick Up 34 | 5 3 9 2 1 3 6 5 . . Fast Attach 43 | 8 . 4 . . 14 6 3 2 6 Attach 24 | 1 1 . . . 8 9 . . 5 Detach 6 | 1 . . . . 4 1 . . . Swap 14 | . 2 3 4 2 3 . . . . Drop 21 | . . 14 2 1 3 . 1 . . Fire 137 | 9 9 20 . 2 51 23 1 . 22 Melee . | . . . . . . . . . . Ram 4 | . . . . . . . 3 . 1 Kick 1 | . . . . . . . 1 . . Crush 3 | . . . . . 1 . . . 2 Escape Stasis . | . . . . . . . . . . Rewire . | . . . . . . . . . . Trap . | . . . . . . . . . . Miscellaneous . | . . . . . . . . . . Route ------- -11/Scrapyard -10/Materials -10/Mines (discovered 4 exits: [*Mat x2] / *Exi / [*Sub]) -10/Exiles (discovered 2 exits: *Min x2) -9/Mines -8/Materials (discovered 2 exits: *Fac x2) -7/Factory (discovered 2 exits: *Fac / Sto) -6/Factory -5/Factory -5/Upper Caves History --------- Turn | Location | Event 10 | -11/Scrapyard | Discovered new exit (range 16) 1148 | -11/Scrapyard | Assembled infested the area 1298 | -11/Scrapyard | Entered Materials 1299 | -10/Materials | Build established: Mutant 1476 | -10/Materials | Core integrity fell below 50% 1500 | -10/Materials | Discovered new exit (range 12) 1515 | -10/Materials | Entered Mines 1515 | -10/Mines | Discovered new exit (range 7) 1519 | -10/Mines | Met a Derelict bent on vengeance 1635 | -10/Mines | Discovered new exit (range 10) 1667 | -10/Mines | Found a Scrap Suit stashed away for nefarious purposes 1670 | -10/Mines | Found Scrap Suit 1819 | -10/Mines | Found DCF Scrap (10 items) 1848 | -10/Mines | Assembled infested the area 1884 | -10/Mines | Learned Materials security intel 1963 | -10/Mines | Received a Mining Laser from a helpful Derelict 2216 | -10/Mines | A weapon hastily lodged in a ceiling crevice suddenly fell to the ground 2422 | -10/Mines | Discovered new exit (range 9) 2544 | -10/Mines | Discovered new exit (range 5) 2587 | -10/Mines | Entered Exiles 2587 | -10/Exiles | Accompanied by 2 allies 2588 | -10/Exiles | Identified exit to Mines 2617 | -10/Exiles | Led the pair of lost Derelicts to a safe place 2626 | -10/Exiles | Met 8R-AWN 2646 | -10/Exiles | Met EX-HEX 2705 | -10/Exiles | Met EX-DEC 2775 | -10/Exiles | Met EX-BIN 2795 | -10/Exiles | Aligned with FarCom system 2796 | -10/Exiles | Given EX-Vault access code 2842 | -10/Exiles | Opened EX-Vault 2848 | -10/Exiles | Found Prototype Device 2849 | -10/Exiles | Identified Cloak of Protection 2921 | -10/Exiles | Warned to stay clear of 0b10 Research branches 3206 | -10/Exiles | Visited The Gauntlet 3557 | -10/Exiles | Left Exiles lab with Cloak of Protection 3557 | -10/Exiles | Entered Mines 3865 | -9/Mines | Found a damaged Exp. Sensor Array with a note attached 3868 | -9/Mines | Found Prototype Device 3874 | -9/Mines | Discovered new exit (range 10) 4028 | -9/Mines | Entered Materials 4028 | -8/Materials | Evolved 4 slots: Power x1, Propulsion x1, Utility x2 4471 | -8/Materials | Lost 5 parts (1p3n1u) 4643 | -8/Materials | Discovered new exit (range 8) 4715 | -8/Materials | Build established: Scavenger-Skirmisher 4957 | -8/Materials | Lost 4 parts (1p1n1u1w) 5029 | -8/Materials | Discovered new exit (range 14) 5051 | -8/Materials | Entered Factory 5051 | -7/Factory | Evolved 2 slots: Utility x1, Weapon x1 5052 | -7/Factory | Identified exit to Storage 5062 | -7/Factory | Lost 3 parts (2p1w) 5103 | -7/Factory | Identified Exp. Sensor Array 5418 | -7/Factory | Lost 3 parts (1p1n1w) 5444 | -7/Factory | Garrison activated, responded to threat 5455 | -7/Factory | Core integrity fell below 50% 5481 | -7/Factory | Lost 7 parts (1p1n2u3w) 5607 | -7/Factory | Discovered new exit (range 5) 5617 | -7/Factory | Entered another Factory area 5617 | -6/Factory | Evolved 2 slots: Propulsion x1, Utility x1 5703 | -6/Factory | Build established: Skirmisher 6187 | -6/Factory | Lost 6 parts (2n1u3w) 6258 | -6/Factory | Discovered new exit (range 7) 6263 | -6/Factory | Entered another Factory area 6263 | -5/Factory | Evolved 2 slots: Utility x2 6367 | -5/Factory | Discovered new exit (range 10) 6437 | -5/Factory | Entered Upper Caves 6449 | -5/Upper Caves | Build established: Mutant 6503 | -5/Upper Caves | Lost 4 parts (1n3w) 6612 | -5/Upper Caves | Attracted the attention of an 0b10 outpost 6633 | -5/Upper Caves | Core integrity fell below 50% 6676 | -5/Upper Caves | Core integrity fell below 20% 6703 | -5/Upper Caves | Lost 6 parts (1p3u2w) 6745 | -5/Upper Caves | Attracted the attention of an 0b10 checkpoint 6746 | -5/Upper Caves | Destroyed by Y-64 Sentinel with KE Penetrator Last Messages --------------- 06618_ Lgt. Nuclear Core destroyed. 06623_ Autogun destroyed. 06640_ S-27 Virus destroyed. 06642_ Acquired 22 matter. 06644_ VTOL Module fries itself beyond repair. 06645_ Acquired Autogun. 06652_ Lgt. Nuclear Core fries itself beyond repair. 06654_ Shock Absorption System destroyed. 06657_ Autogun destroyed. 06661_ Autogun severed. 06664_ Acquired Autogun. 06668_ Fusion Compressor destroyed. 06670_ Imp. Terrain Scanner destroyed. 06672_ Slammed into G-50 Soldier. 06672_ Core Analyzer destroyed. 06672_ Penetrated by Slug. 06672_ Autogun destroyed. 06672_ Slug penetrates G-50 Soldier. 06744_ Penetrated by Slug. 06745_ Y-64 Sentinel: "INTERCEPTING UNREGISTERED DERELICT." Map ----- +----------------------------------------------------+ | ?????????????????????????????????????????????????? | | ?????????????????????????????????????????????????? | | ?????????????????????????????????????????????????? | | ?????????????????????????????????????????????????? | | ?????????????????????????????????????????????????? | | ?????????????????????????????????????????????????? | | ?????????????????????????????????????????????????? | | ?????????????????????????????????????????????????? | | ?????????????????????????????????????????????????? | | ?????????????????????????????????????????????????? | | ?????????????????????????????????????????????????? | | ?????????????????????????????????????????????????? | | ?????????????????????????????????????????????????? | | ?????????????????????????????????????????????????? | | ?????????????????????????????????????????????????? | | ?????????????????????????????????????????????????? | | ?????????????????????????????????????????????????? | | ?????????????????????????????????????????????????? | | ?????????????????????????????????????????????????? | | ?????????????????????????????????????????????????? | | ?????????????????????????????????????????????????? | | ???????????????????????????######????????????????? | | ?????????????#????????????# #????????????????? | | ??????? ??????$??????##### #?????????????????? | | ??????? ????? ?????# ## #????????????? | | ??????? #### ???## @ #????????????? | | ?????????# #### ## #????????????? | | ????????## ##????? #???????????? | | ???????# $ s ##????? ?? ?????????? | | ??????# Y "#??? ??????????????? | | ????? ### ### #???????????????? | | ????? ??## #????????????????????? | | ???????## ????# #????????????????????? | | ????????# ????## #####????????????????????# | | ?????????????????# ##???????????????????????## | | ?????????????????# #????????????????????????# | | ?????????????????## ##????????????????????????# | | ??????????????????## #?????????????????????????# | | ????????????????#### #??????????????????????????? | | ????????????????# #??????????????????????????? | | ????????????????# #??????????????????????????? | | ????????????????# ####??????????????????????????? | | ?????????######## #?###???????#?????????????????? | | ?????????#"""""## ## ##????? #?????????????????? | | ?????????#"""""## # #???? #??????????###????? | | ????????##"""""## # #???## #?????????? ??? | | ??????### # #?# #???# ##?????????? ?? | | ?????## # ### ##??# #???????????? # | | ?????# ##?# #??????????????# | | ?????# ### ## #????????????????# | +----------------------------------------------------+ Best States ------------- Heat Dissipation 40 Energy Generation 25 Energy Capacity 405 Matter Stores 300 Matter Capacity 300 Sight Range 16 Robot Scan Range 20 Terrain Scan Range 16 Terrain Scan Density 10 Cloak Strength 5 Corruption Containment 8 Armor Coverage 150 Evasion (%) 55 Launcher Accuracy 20 Core Analysis 6 Recoil Reduction 3 Item Schematics ----------------- None Robot Schematics ------------------ None Fabricated ------------ Nothing Repaired ---------- Nothing Studied --------- Lightning Gun | -6/Factory | Hacked Proton Cannon | -6/Factory | Hacked Alien Tech Used ----------------- None Achievements -------------- None Challenges ------------ None Game ------ Seed ArchitectArchitectParser Manual? 0 Play Time 00:52:29 Cumulative 39.9 hours Start 2026.07.31 @ 17:57:24 End 2026.08.01 @ 03:33:05 Sessions 3 Manual Loads 0 Difficulty Rogue Special Mode None Game No. 55 Rogue 32 Adventurer 18 Explorer 5 Win Type - Total 0 Types 0/0/0/0/0/0/0/0/0/0 Lore% 32 Gallery% 41 Achievement% 30 Wizard Run 0 Options --------- Layout 0 ASCII 0 Keyboard 1 Movement Numpad Keybinds 0 Fullscreen 1 Font 18/X11 Map View 76x50 Zoom Use 3% Tactical HUD 1 Map Filters NONE Filters NONE Steam 1 RUN: 463126a3-3e11-40f8-930c-85abb3f3e731